[Event "*** Titled Tuesday Blitz"]
[Site "Chess.com"]
[Date "2019.09.03"]
[Round "9"]
[White "jlucasvf"]
[Black "Lunaticx"]
[Result "1-0"]
[WhiteElo "2713"]
[BlackElo "2831"]
[TimeControl "180+2"]
[EndTime "17:10:04 PDT"]
[Termination "jlucasvf won on time"]

1. e4 {[%clk 0:03:01.9]} 1... d6 {[%clk 0:02:59.5]} 2. d4 {[%clk 0:03:02.1]}
2... Nf6 {[%clk 0:03:00.4]} 3. Nc3 {[%clk 0:03:03.5]} 3... e5 {[%clk 0:03:01.9]}
4. dxe5 {[%clk 0:03:05.4]} 4... dxe5 {[%clk 0:03:02.6]} 5. Qxd8+ {[%clk
0:03:07.3]} 5... Kxd8 {[%clk 0:03:04.1]} 6. Bc4 {[%clk 0:03:09.2]} 6... Be6
{[%clk 0:03:04.8]} 7. Bxe6 {[%clk 0:03:10.3]} 7... fxe6 {[%clk 0:03:06.5]} 8. f3
{[%clk 0:03:12.1]} 8... Bd6 {[%clk 0:03:07.5]} 9. Be3 {[%clk 0:03:13.2]} 9...
Nbd7 {[%clk 0:03:08.6]} 10. Nge2 {[%clk 0:03:14.3]} 10... a6 {[%clk 0:03:09.9]}
11. a4 {[%clk 0:03:02.6]} 11... Ke7 {[%clk 0:03:08.1]} 12. Nb1 {[%clk
0:03:03.8]} 12... b5 {[%clk 0:03:08.5]} 13. Nd2 {[%clk 0:02:59.8]} 13... Rhb8
{[%clk 0:03:07.6]} 14. axb5 {[%clk 0:02:57.1]} 14... axb5 {[%clk 0:03:08.4]} 15.
Kf2 {[%clk 0:02:58.2]} 15... Rf8 {[%clk 0:03:05.4]} 16. h3 {[%clk 0:02:50.9]}
16... Nc5 {[%clk 0:03:05.8]} 17. Kg3 {[%clk 0:02:42.1]} 17... Nh5+ {[%clk
0:02:59.7]} 18. Kf2 {[%clk 0:02:40.7]} 18... Nf4 {[%clk 0:02:59.2]} 19. Bxf4
{[%clk 0:02:28.4]} 19... exf4 {[%clk 0:03:00]} 20. Nd4 {[%clk 0:02:30]} 20...
Be5 {[%clk 0:02:49.6]} 21. Nc6+ {[%clk 0:02:08.3]} 21... Kd6 {[%clk 0:02:47.1]}
22. Nxe5 {[%clk 0:02:04.1]} 22... Kxe5 {[%clk 0:02:47.6]} 23. Ke2 {[%clk
0:02:03.5]} 23... c6 {[%clk 0:02:41.9]} 24. Rhd1 {[%clk 0:01:57.2]} 24... Na4
{[%clk 0:02:36.7]} 25. Rab1 {[%clk 0:01:58]} 25... Rfd8 {[%clk 0:02:34]} 26. Nb3
{[%clk 0:01:59.1]} 26... c5 {[%clk 0:02:31.7]} 27. Rxd8 {[%clk 0:01:54.2]} 27...
Rxd8 {[%clk 0:02:30.9]} 28. Nc1 {[%clk 0:01:55.8]} 28... c4 {[%clk 0:02:29.7]}
29. Na2 {[%clk 0:01:56.4]} 29... Kf6 {[%clk 0:02:11.9]} 30. b3 {[%clk
0:01:54.5]} 30... Nb6 {[%clk 0:02:05.2]} 31. Nc3 {[%clk 0:01:44.9]} 31... cxb3
{[%clk 0:01:55.3]} 32. cxb3 {[%clk 0:01:39.8]} 32... Rc8 {[%clk 0:01:55.9]} 33.
Nxb5 {[%clk 0:01:26.3]} 33... Rc2+ {[%clk 0:01:55.7]} 34. Kf1 {[%clk 0:01:28]}
34... Ke5 {[%clk 0:01:45.6]} 35. Na3 {[%clk 0:01:20.5]} 35... Rc3 {[%clk
0:01:37.6]} 36. Ke2 {[%clk 0:01:15.3]} 36... g5 {[%clk 0:01:30.3]} 37. Kd2
{[%clk 0:01:14.9]} 37... Rc8 {[%clk 0:01:31.1]} 38. Nc2 {[%clk 0:01:14.8]} 38...
h5 {[%clk 0:01:30.5]} 39. Ne1 {[%clk 0:01:13.6]} 39... g4 {[%clk 0:01:29]} 40.
Nd3+ {[%clk 0:01:14.3]} 40... Kf6 {[%clk 0:01:22.4]} 41. Nxf4 {[%clk 0:01:12.9]}
41... gxf3 {[%clk 0:01:23.6]} 42. gxf3 {[%clk 0:01:13.9]} 42... h4 {[%clk
0:01:17.5]} 43. Rg1 {[%clk 0:01:12.5]} 43... Nd7 {[%clk 0:01:11.9]} 44. Rg6+
{[%clk 0:01:10.9]} 44... Kf7 {[%clk 0:01:07.6]} 45. Rxe6 {[%clk 0:01:09.3]}
45... Rb8 {[%clk 0:01:08.3]} 46. Rh6 {[%clk 0:00:58.6]} 46... Rxb3 {[%clk
0:01:08.2]} 47. Nd3 {[%clk 0:00:59.9]} 47... Nb6 {[%clk 0:00:54.9]} 48. Ne5+
{[%clk 0:00:44.2]} 48... Kg7 {[%clk 0:00:50.2]} 49. Rxh4 {[%clk 0:00:43.3]}
49... Kf6 {[%clk 0:00:48.3]} 50. f4 {[%clk 0:00:42.1]} 50... Rb2+ {[%clk
0:00:47.7]} 51. Ke3 {[%clk 0:00:42.4]} 51... Rb3+ {[%clk 0:00:48.1]} 52. Kd4
{[%clk 0:00:43.8]} 52... Na4 {[%clk 0:00:46]} 53. Nd3 {[%clk 0:00:41.5]} 53...
Nc3 {[%clk 0:00:41.3]} 54. Kc4 {[%clk 0:00:33.8]} 54... Ra3 {[%clk 0:00:42.5]}
55. Kb4 {[%clk 0:00:31.3]} 55... Nb1 {[%clk 0:00:43.8]} 56. Nc5 {[%clk
0:00:32.6]} 56... Re3 {[%clk 0:00:41.8]} 57. Kc4 {[%clk 0:00:32]} 57... Nd2+
{[%clk 0:00:41.3]} 58. Kd4 {[%clk 0:00:33.4]} 58... Re1 {[%clk 0:00:42.4]} 59.
Rh6+ {[%clk 0:00:33.9]} 59... Kg7 {[%clk 0:00:43.1]} 60. Ra6 {[%clk 0:00:34.4]}
60... Nf3+ {[%clk 0:00:43.3]} 61. Kd3 {[%clk 0:00:32.7]} 61... Rh1 {[%clk
0:00:44.1]} 62. Ne6+ {[%clk 0:00:31]} 62... Kg8 {[%clk 0:00:38]} 63. Ng5 {[%clk
0:00:28.3]} 63... Nh4 {[%clk 0:00:27.3]} 64. Kd4 {[%clk 0:00:27.5]} 64... Rf1
{[%clk 0:00:26.8]} 65. Ke5 {[%clk 0:00:27.7]} 65... Kg7 {[%clk 0:00:23.8]} 66.
f5 {[%clk 0:00:28.6]} 66... Rg1 {[%clk 0:00:21.3]} 67. Ne6+ {[%clk 0:00:28.4]}
67... Kf7 {[%clk 0:00:18.5]} 68. Ra7+ {[%clk 0:00:29.5]} 68... Kg8 {[%clk
0:00:19.3]} 69. Kf6 {[%clk 0:00:31.4]} 69... Re1 {[%clk 0:00:18.1]} 70. Ra8+
{[%clk 0:00:32.3]} 1-0

[Event "*** Titled Tuesday Blitz"]
[Site "Chess.com"]
[Date "2019.09.03"]
[Round "9"]
[White "Alexandercs432"]
[Black "NicoChasin"]
[Result "0-1"]
[WhiteElo "2047"]
[BlackElo "2477"]
[TimeControl "180+2"]
[EndTime "17:10:04 PDT"]
[Termination "NicoChasin won by checkmate"]

1. e4 {[%clk 0:03:01.7]} 1... c5 {[%clk 0:02:59.5]} 2. Nf3 {[%clk 0:03:02.1]}
2... e6 {[%clk 0:03:00.1]} 3. d4 {[%clk 0:03:02.4]} 3... cxd4 {[%clk 0:03:02]}
4. Nxd4 {[%clk 0:03:03.5]} 4... Nc6 {[%clk 0:03:03.9]} 5. Nc3 {[%clk 0:03:04]}
5... Qc7 {[%clk 0:03:05.2]} 6. Be2 {[%clk 0:03:00.2]} 6... a6 {[%clk 0:03:05.4]}
7. Be3 {[%clk 0:02:59.7]} 7... Nf6 {[%clk 0:03:05.9]} 8. O-O {[%clk 0:03:00.4]}
8... Bb4 {[%clk 0:03:07.2]} 9. Na4 {[%clk 0:02:59.3]} 9... Nxe4 {[%clk
0:03:05.6]} 10. Nxc6 {[%clk 0:02:50.2]} 10... Qxc6 {[%clk 0:02:48.5]} 11. Nb6
{[%clk 0:02:45]} 11... Rb8 {[%clk 0:02:48.3]} 12. Qd4 {[%clk 0:02:17]} 12... Bc5
{[%clk 0:02:26]} 13. Qxg7 {[%clk 0:02:09]} 13... Rf8 {[%clk 0:02:26.4]} 14. Bxc5
{[%clk 0:01:50.1]} 14... Qxc5 {[%clk 0:02:26.7]} 15. Nxc8 {[%clk 0:01:32.9]}
15... Rxc8 {[%clk 0:02:27.2]} 16. Bd3 {[%clk 0:01:25.1]} 16... Nd2 {[%clk
0:02:10]} 17. Rfd1 {[%clk 0:00:59.3]} 17... Nc4 {[%clk 0:02:10.4]} 18. Bxc4
{[%clk 0:00:31.5]} 18... Qxc4 {[%clk 0:02:10.5]} 19. c3 {[%clk 0:00:30.8]} 19...
Qe4 {[%clk 0:02:05.7]} 20. Rd6 {[%clk 0:00:17.4]} 20... Qg6 {[%clk 0:02:03.1]}
21. Qxg6 {[%clk 0:00:13.2]} 21... hxg6 {[%clk 0:02:03.1]} 22. Rad1 {[%clk
0:00:15.1]} 22... Rc7 {[%clk 0:02:03.4]} 23. g3 {[%clk 0:00:14.8]} 23... Ke7
{[%clk 0:02:04.2]} 24. h4 {[%clk 0:00:13.5]} 24... Rh8 {[%clk 0:02:04.2]} 25.
Kg2 {[%clk 0:00:14.1]} 25... Rh5 {[%clk 0:02:05.1]} 26. R6d4 {[%clk 0:00:13.6]}
26... Rb5 {[%clk 0:02:05.4]} 27. R4d2 {[%clk 0:00:12.9]} 27... d5 {[%clk
0:02:06.3]} 28. a3 {[%clk 0:00:13.1]} 28... Rbc5 {[%clk 0:02:06.9]} 29. Re2
{[%clk 0:00:13.5]} 29... Kf6 {[%clk 0:02:05.9]} 30. Rh1 {[%clk 0:00:13.2]} 30...
Kg7 {[%clk 0:02:01.8]} 31. h5 {[%clk 0:00:12.8]} 31... g5 {[%clk 0:02:02.8]} 32.
g4 {[%clk 0:00:12.8]} 32... Rc4 {[%clk 0:02:02.4]} 33. f3 {[%clk 0:00:13]} 33...
d4 {[%clk 0:01:58.4]} 34. cxd4 {[%clk 0:00:12.2]} 34... Rxd4 {[%clk 0:01:59.9]}
35. Rhe1 {[%clk 0:00:12.5]} 35... Rc5 {[%clk 0:01:58.7]} 36. Rf2 {[%clk
0:00:11.8]} 36... Rcd5 {[%clk 0:01:55.6]} 37. Ree2 {[%clk 0:00:12.8]} 37... Rd6
{[%clk 0:01:51.1]} 38. Rc2 {[%clk 0:00:13.6]} 38... b5 {[%clk 0:01:50.7]} 39.
Rfe2 {[%clk 0:00:14.6]} 39... Rd7 {[%clk 0:01:47.3]} 40. Kf2 {[%clk 0:00:15.7]}
40... R4d6 {[%clk 0:01:46.4]} 41. Ke3 {[%clk 0:00:16.6]} 41... f5 {[%clk
0:01:44.9]} 42. Red2 {[%clk 0:00:17.1]} 42... Kf6 {[%clk 0:01:24.4]} 43. Rxd6
{[%clk 0:00:18]} 43... Rxd6 {[%clk 0:01:24.8]} 44. Rd2 {[%clk 0:00:17.6]} 44...
Rc6 {[%clk 0:01:24.2]} 45. Rh2 {[%clk 0:00:17.8]} 45... Kg7 {[%clk 0:01:21.5]}
46. Rd2 {[%clk 0:00:17.3]} 46... Rc4 {[%clk 0:01:17.3]} 47. Rd4 {[%clk
0:00:14.8]} 47... Rc2 {[%clk 0:01:17.4]} 48. Rd2 {[%clk 0:00:15.8]} 48... Rc1
{[%clk 0:01:16.8]} 49. Rd7+ {[%clk 0:00:15.3]} 49... Kf6 {[%clk 0:01:15.3]} 50.
Rd6 {[%clk 0:00:12.9]} 50... Re1+ {[%clk 0:01:04.2]} 51. Kf2 {[%clk 0:00:12.8]}
51... Rb1 {[%clk 0:01:04.1]} 52. Rxa6 {[%clk 0:00:13.4]} 52... Rxb2+ {[%clk
0:01:04.9]} 53. Ke3 {[%clk 0:00:13.5]} 53... Rb3+ {[%clk 0:01:05.3]} 54. Kf2
{[%clk 0:00:14.1]} 54... Rb2+ {[%clk 0:01:05.5]} 55. Ke3 {[%clk 0:00:15.2]}
55... Rg2 {[%clk 0:01:06.1]} 56. Rb6 {[%clk 0:00:10.5]} 56... fxg4 {[%clk
0:01:02.4]} 57. fxg4 {[%clk 0:00:12.4]} 57... Rxg4 {[%clk 0:01:03.5]} 58. Rxb5
{[%clk 0:00:12.2]} 58... Rh4 {[%clk 0:01:01]} 59. Rb4 {[%clk 0:00:06.8]} 59...
Rh3+ {[%clk 0:01:00.9]} 60. Kd4 {[%clk 0:00:05.9]} 60... Rxa3 {[%clk 0:01:01.8]}
61. Rb8 {[%clk 0:00:06.3]} 61... Rh3 {[%clk 0:01:02.8]} 62. Rh8 {[%clk
0:00:06.7]} 62... g4 {[%clk 0:00:59.5]} 63. Ke4 {[%clk 0:00:05.9]} 63... Kg5
{[%clk 0:00:58.4]} 64. Ke5 {[%clk 0:00:05]} 64... Re3+ {[%clk 0:00:58]} 65. Kd4
{[%clk 0:00:05.5]} 65... Rh3 {[%clk 0:00:55]} 66. Ke5 {[%clk 0:00:06.6]} 66...
Rxh5 {[%clk 0:00:54.7]} 67. Rg8+ {[%clk 0:00:07.3]} 67... Kh4+ {[%clk
0:00:54.3]} 68. Kxe6 {[%clk 0:00:06.8]} 68... g3 {[%clk 0:00:55.2]} 69. Kf6
{[%clk 0:00:05.7]} 69... Kh3 {[%clk 0:00:56.1]} 70. Kg6 {[%clk 0:00:05.2]} 70...
Rh4 {[%clk 0:00:55.9]} 71. Kg5 {[%clk 0:00:06.2]} 71... Rg4+ {[%clk 0:00:56.6]}
72. Kh5 {[%clk 0:00:07]} 72... Rxg8 {[%clk 0:00:58.5]} 73. Kh6 {[%clk
0:00:08.1]} 73... g2 {[%clk 0:00:58.9]} 74. Kh7 {[%clk 0:00:10]} 74... g1=Q
{[%clk 0:00:59.6]} 75. Kh6 {[%clk 0:00:11.3]} 75... Qg6# {[%clk 0:01:01.5]} 0-1

[Event "*** Titled Tuesday Blitz"]
[Site "Chess.com"]
[Date "2019.09.03"]
[Round "9"]
[White "bubacik"]
[Black "Sanan_Sjugirov"]
[Result "0-1"]
[WhiteElo "2743"]
[BlackElo "2876"]
[TimeControl "180+2"]
[EndTime "17:10:12 PDT"]
[Termination "Sanan_Sjugirov won by resignation"]

1. Nf3 {[%clk 0:03:01.9]} 1... Nf6 {[%clk 0:02:53.7]} 2. g3 {[%clk 0:02:59.2]}
2... g6 {[%clk 0:02:52.1]} 3. Bg2 {[%clk 0:02:57.6]} 3... Bg7 {[%clk 0:02:53.4]}
4. O-O {[%clk 0:02:58]} 4... O-O {[%clk 0:02:54.3]} 5. c4 {[%clk 0:02:57.5]}
5... d5 {[%clk 0:02:50.6]} 6. cxd5 {[%clk 0:02:57.8]} 6... Nxd5 {[%clk
0:02:52.5]} 7. d4 {[%clk 0:02:57.3]} 7... Nb6 {[%clk 0:02:35.9]} 8. Qd2 {[%clk
0:02:50.6]} 8... Nc6 {[%clk 0:02:31.8]} 9. Rd1 {[%clk 0:02:50.3]} 9... Bg4
{[%clk 0:02:28.4]} 10. d5 {[%clk 0:02:22.8]} 10... Bxf3 {[%clk 0:01:44]} 11.
Bxf3 {[%clk 0:02:24.7]} 11... Nd4 {[%clk 0:01:27.2]} 12. Bg2 {[%clk 0:02:25.3]}
12... c5 {[%clk 0:01:26.9]} 13. Nc3 {[%clk 0:02:10.9]} 13... Qd7 {[%clk
0:01:06.6]} 14. e3 {[%clk 0:02:03.8]} 14... Nf5 {[%clk 0:01:05.6]} 15. Bh3
{[%clk 0:01:58.2]} 15... Qd8 {[%clk 0:00:52.4]} 16. Qc2 {[%clk 0:01:46.4]} 16...
Nd6 {[%clk 0:00:51.9]} 17. e4 {[%clk 0:01:47.7]} 17... Nd7 {[%clk 0:00:46.3]}
18. f4 {[%clk 0:01:19.8]} 18... Bd4+ {[%clk 0:00:46.1]} 19. Kh1 {[%clk
0:01:20.7]} 19... Nb6 {[%clk 0:00:16]} 20. Ne2 {[%clk 0:01:16.7]} 20... f5
{[%clk 0:00:16.8]} 21. Nxd4 {[%clk 0:00:28.9]} 21... cxd4 {[%clk 0:00:18.7]} 22.
Rxd4 {[%clk 0:00:30.4]} 22... Nxe4 {[%clk 0:00:16.1]} 23. Be3 {[%clk 0:00:26]}
23... Rc8 {[%clk 0:00:09.9]} 24. Qb3 {[%clk 0:00:25.3]} 24... Nd6 {[%clk
0:00:08.9]} 25. Re1 {[%clk 0:00:23.4]} 25... Nd7 {[%clk 0:00:09.3]} 26. Bg2
{[%clk 0:00:21.9]} 26... Nc5 {[%clk 0:00:10.3]} 27. Qd1 {[%clk 0:00:20]} 27...
Nce4 {[%clk 0:00:11.2]} 28. Bg1 {[%clk 0:00:16.7]} 28... Qa5 {[%clk 0:00:11.8]}
29. a3 {[%clk 0:00:16.5]} 29... Qb5 {[%clk 0:00:11.5]} 30. Rb4 {[%clk
0:00:16.2]} 30... Qa6 {[%clk 0:00:09.5]} 31. Bf1 {[%clk 0:00:17.4]} 31... b5
{[%clk 0:00:09.7]} 32. Bg2 {[%clk 0:00:17.9]} 32... Qb7 {[%clk 0:00:08.6]} 33.
Qd3 {[%clk 0:00:17.9]} 33... a5 {[%clk 0:00:09.1]} 34. Rd4 {[%clk 0:00:18.2]}
34... Rc7 {[%clk 0:00:08.4]} 35. g4 {[%clk 0:00:14.1]} 35... Rc4 {[%clk
0:00:06.4]} 36. gxf5 {[%clk 0:00:13.6]} 36... gxf5 {[%clk 0:00:07.1]} 37. Rxc4
{[%clk 0:00:12.9]} 37... bxc4 {[%clk 0:00:08]} 38. Qd4 {[%clk 0:00:14.3]} 38...
h6 {[%clk 0:00:05.1]} 39. Re2 {[%clk 0:00:15.8]} 39... Kh7 {[%clk 0:00:06.2]}
40. Bxe4 {[%clk 0:00:14.7]} 40... fxe4 {[%clk 0:00:04.5]} 41. Rxe4 {[%clk
0:00:16.3]} 41... Rf5 {[%clk 0:00:03.5]} 42. Re5 {[%clk 0:00:15.2]} 42... Rf7
{[%clk 0:00:04.2]} 43. Re6 {[%clk 0:00:10.3]} 43... Qb3 {[%clk 0:00:04.6]} 44.
Re3 {[%clk 0:00:08.6]} 44... Qc2 {[%clk 0:00:05.2]} 45. Rg3 {[%clk 0:00:09]}
45... Nf5 {[%clk 0:00:05.5]} 46. Qe5 {[%clk 0:00:04.8]} 46... Nxg3+ {[%clk
0:00:06.5]} 47. hxg3 {[%clk 0:00:06.7]} 47... Qf5 {[%clk 0:00:07.4]} 48. Bd4
{[%clk 0:00:06.4]} 48... Qh3+ {[%clk 0:00:08]} 49. Kg1 {[%clk 0:00:07.2]} 49...
Qxg3+ {[%clk 0:00:09.4]} 50. Kh1 {[%clk 0:00:09]} 50... Qh3+ {[%clk 0:00:09.6]}
51. Kg1 {[%clk 0:00:10.4]} 51... Qg3+ {[%clk 0:00:11]} 52. Kh1 {[%clk
0:00:11.8]} 52... Qf3+ {[%clk 0:00:12.5]} 53. Kg1 {[%clk 0:00:12.2]} 53... Qg4+
{[%clk 0:00:13]} 54. Kh1 {[%clk 0:00:13.1]} 54... Qh4+ {[%clk 0:00:13.6]} 55.
Kg1 {[%clk 0:00:14.5]} 55... Qf6 {[%clk 0:00:13.8]} 56. Qxf6 {[%clk 0:00:07.1]}
56... exf6 {[%clk 0:00:14.8]} 57. d6 {[%clk 0:00:08.6]} 57... Kg6 {[%clk
0:00:14.6]} 58. Bb6 {[%clk 0:00:08.7]} 58... Rd7 {[%clk 0:00:15.5]} 59. Bc7
{[%clk 0:00:05.3]} 59... Kf5 {[%clk 0:00:15.9]} 60. Kf2 {[%clk 0:00:07.2]} 60...
a4 {[%clk 0:00:16.3]} 61. Kf3 {[%clk 0:00:07.5]} 61... h5 {[%clk 0:00:14.7]} 62.
Kg3 {[%clk 0:00:08.9]} 62... h4+ {[%clk 0:00:15.7]} 63. Kxh4 {[%clk 0:00:10.2]}
63... Kxf4 {[%clk 0:00:17.2]} 64. Kh5 {[%clk 0:00:11.7]} 64... f5 {[%clk
0:00:17.3]} 65. Kg6 {[%clk 0:00:12.8]} 65... Ke5 {[%clk 0:00:18.6]} 66. Kg5
{[%clk 0:00:14]} 66... f4 {[%clk 0:00:19]} 67. Kg4 {[%clk 0:00:13.6]} 67... Ke4
{[%clk 0:00:20.1]} 0-1

[Event "*** Titled Tuesday Blitz"]
[Site "Chess.com"]
[Date "2019.09.03"]
[Round "9"]
[White "MarshKnight"]
[Black "2165149677570"]
[Result "1-0"]
[WhiteElo "2217"]
[BlackElo "2293"]
[TimeControl "180+2"]
[EndTime "17:10:34 PDT"]
[Termination "MarshKnight won by resignation"]

1. e4 {[%clk 0:03:01.4]} 1... c5 {[%clk 0:03:01.5]} 2. Nf3 {[%clk 0:03:02.6]}
2... Nc6 {[%clk 0:03:03]} 3. d4 {[%clk 0:03:04.2]} 3... cxd4 {[%clk 0:03:04.9]}
4. Nxd4 {[%clk 0:03:05.6]} 4... Nf6 {[%clk 0:03:06.6]} 5. Nc3 {[%clk 0:03:06.6]}
5... e6 {[%clk 0:03:08.2]} 6. Ndb5 {[%clk 0:03:06.9]} 6... d6 {[%clk 0:03:09.3]}
7. Bf4 {[%clk 0:03:07.1]} 7... e5 {[%clk 0:03:10.9]} 8. Bg5 {[%clk 0:03:08.8]}
8... a6 {[%clk 0:03:12.5]} 9. Na3 {[%clk 0:03:10.4]} 9... b5 {[%clk 0:03:14.2]}
10. Nd5 {[%clk 0:03:12.1]} 10... Be7 {[%clk 0:03:15.3]} 11. Bxf6 {[%clk
0:03:13.8]} 11... Bxf6 {[%clk 0:03:17.2]} 12. c4 {[%clk 0:03:14.7]} 12... b4
{[%clk 0:03:18.3]} 13. Nc2 {[%clk 0:03:16.4]} 13... O-O {[%clk 0:03:20]} 14. h4
{[%clk 0:03:17]} 14... a5 {[%clk 0:03:20.2]} 15. b3 {[%clk 0:03:17.1]} 15... Be6
{[%clk 0:03:21.1]} 16. g3 {[%clk 0:03:18.1]} 16... Nd4 {[%clk 0:03:03.7]} 17.
Nxd4 {[%clk 0:03:12.7]} 17... exd4 {[%clk 0:03:05.6]} 18. Qd3 {[%clk 0:03:07.5]}
18... Bxd5 {[%clk 0:03:06.3]} 19. cxd5 {[%clk 0:03:08.2]} 19... Rc8 {[%clk
0:03:06.8]} 20. Bh3 {[%clk 0:03:08.3]} 20... Rc3 {[%clk 0:03:08]} 21. Qd2 {[%clk
0:02:53.3]} 21... d3 {[%clk 0:03:08.3]} 22. Rc1 {[%clk 0:02:50.9]} 22... Qc7
{[%clk 0:02:40.2]} 23. O-O {[%clk 0:02:49.9]} 23... Re8 {[%clk 0:02:34.7]} 24.
f3 {[%clk 0:02:32.2]} 24... Qc5+ {[%clk 0:02:31.7]} 25. Kh2 {[%clk 0:02:32.6]}
25... Bd4 {[%clk 0:02:31.1]} 26. Rxc3 {[%clk 0:02:19.5]} 26... Qxc3 {[%clk
0:02:33]} 27. Rd1 {[%clk 0:02:20.3]} 27... Qc2 {[%clk 0:02:23.8]} 28. Qxc2
{[%clk 0:02:12.3]} 28... dxc2 {[%clk 0:02:25.7]} 29. Rc1 {[%clk 0:02:13.8]}
29... Bc3 {[%clk 0:02:23]} 30. Rxc2 {[%clk 0:02:14.5]} 30... Re7 {[%clk
0:02:24.9]} 31. Bf1 {[%clk 0:01:58]} 31... a4 {[%clk 0:02:25.7]} 32. bxa4 {[%clk
0:01:55.9]} 32... Ra7 {[%clk 0:02:25.9]} 33. Bb5 {[%clk 0:01:57.2]} 33... Kf8
{[%clk 0:02:25.1]} 34. Kg2 {[%clk 0:01:50.2]} 34... Ke7 {[%clk 0:02:26.2]} 35.
Kf2 {[%clk 0:01:49.9]} 35... Kd8 {[%clk 0:02:27.8]} 36. Ke2 {[%clk 0:01:50.2]}
36... Kc7 {[%clk 0:02:29.4]} 37. Kd3 {[%clk 0:01:51]} 37... Kb6 {[%clk 0:02:31]}
38. Kc4 {[%clk 0:01:49.3]} 38... Rc7+ {[%clk 0:02:31.5]} 39. Kb3 {[%clk
0:01:50.8]} 39... Ka5 {[%clk 0:02:32.4]} 40. a3 {[%clk 0:01:48.9]} 40... Re7
{[%clk 0:02:32.2]} 41. axb4+ {[%clk 0:01:48.6]} 41... Bxb4 {[%clk 0:02:34.1]}
42. Rc6 {[%clk 0:01:49.2]} 42... Ra7 {[%clk 0:02:32.9]} 43. Rc8 {[%clk
0:01:31.5]} 43... Be1 {[%clk 0:02:33.4]} 44. Bc6 {[%clk 0:01:32.4]} 44... Bxg3
{[%clk 0:02:33.5]} 45. Rb8 {[%clk 0:01:28.4]} 45... Bxh4 {[%clk 0:02:30.3]} 46.
Rb5+ {[%clk 0:01:29.6]} 46... Ka6 {[%clk 0:02:31.8]} 47. a5 {[%clk 0:01:30.4]}
47... Bd8 {[%clk 0:02:25.6]} 48. Ka4 {[%clk 0:01:26.8]} 48... Bc7 {[%clk
0:02:24.4]} 49. Bd7 {[%clk 0:01:05.3]} 49... Ra8 {[%clk 0:02:25]} 50. Bc6 {[%clk
0:01:06.6]} 50... Rb8 {[%clk 0:02:26.2]} 51. Rxb8 {[%clk 0:00:59.8]} 51... Bxb8
{[%clk 0:02:27.5]} 52. Bd7 {[%clk 0:00:56.3]} 52... Bc7 {[%clk 0:02:27.1]} 53.
Bc8+ {[%clk 0:00:56.2]} 53... Ka7 {[%clk 0:02:27.7]} 54. Kb5 {[%clk 0:00:57.1]}
54... h5 {[%clk 0:02:25.7]} 55. a6 {[%clk 0:00:58.2]} 55... g5 {[%clk
0:02:25.5]} 56. Kc6 {[%clk 0:00:58.9]} 56... Bb8 {[%clk 0:02:26.5]} 57. Kd7
{[%clk 0:00:53.9]} 57... g4 {[%clk 0:02:22.8]} 58. fxg4 {[%clk 0:00:55]} 58...
h4 {[%clk 0:02:14.9]} 59. e5 {[%clk 0:00:54.8]} 59... h3 {[%clk 0:01:57.4]} 60.
e6 {[%clk 0:00:55]} 60... fxe6 {[%clk 0:01:52.2]} 61. dxe6 {[%clk 0:00:55.4]}
61... h2 {[%clk 0:01:53.6]} 62. e7 {[%clk 0:00:56.8]} 62... h1=Q {[%clk
0:01:54.6]} 63. e8=Q {[%clk 0:00:57.5]} 63... Qf3 {[%clk 0:01:36]} 64. Kd8
{[%clk 0:00:46.2]} 64... Kb6 {[%clk 0:01:20.3]} 65. Qe7 {[%clk 0:00:30.1]} 65...
Kb5 {[%clk 0:00:38.9]} 66. a7 {[%clk 0:00:21.5]} 66... Bxa7 {[%clk 0:00:36.1]}
67. Qxa7 {[%clk 0:00:22.6]} 67... Qf8+ {[%clk 0:00:36.4]} 68. Kc7 {[%clk
0:00:23.8]} 68... d5 {[%clk 0:00:23.5]} 69. Bd7+ {[%clk 0:00:19.1]} 69... Kc4
{[%clk 0:00:24.4]} 70. Qa4+ {[%clk 0:00:17.6]} 70... Kc3 {[%clk 0:00:21.5]} 71.
Qc6+ {[%clk 0:00:17.5]} 71... Kd4 {[%clk 0:00:22.9]} 72. Be6 {[%clk 0:00:16.2]}
72... Qe7+ {[%clk 0:00:21.4]} 73. Kb6 {[%clk 0:00:17.3]} 73... Qb4+ {[%clk
0:00:22.6]} 74. Kc7 {[%clk 0:00:17.8]} 74... Qe7+ {[%clk 0:00:23.6]} 75. Qd7
{[%clk 0:00:16.3]} 75... Qc5+ {[%clk 0:00:24.7]} 76. Kd8 {[%clk 0:00:17.3]}
76... Qf8+ {[%clk 0:00:25.8]} 77. Kc7 {[%clk 0:00:17.7]} 77... Qc5+ {[%clk
0:00:27]} 78. Kb7 {[%clk 0:00:19.3]} 78... Qb4+ {[%clk 0:00:27.8]} 79. Kc8
{[%clk 0:00:20.6]} 79... Qf8+ {[%clk 0:00:28.7]} 80. Qd8 {[%clk 0:00:20.7]}
80... Qc5+ {[%clk 0:00:29.3]} 81. Qc7 {[%clk 0:00:21]} 81... Qf8+ {[%clk
0:00:29.3]} 82. Kb7 {[%clk 0:00:22.5]} 82... Qb4+ {[%clk 0:00:28.7]} 83. Qb6+
{[%clk 0:00:23.6]} 83... Qxb6+ {[%clk 0:00:30.1]} 84. Kxb6 {[%clk 0:00:25.1]}
84... Ke5 {[%clk 0:00:31.7]} 85. Bf5 {[%clk 0:00:25.3]} 85... d4 {[%clk
0:00:33.1]} 86. Kc5 {[%clk 0:00:26.7]} 1-0